bitfinex-derivatives/quotes_BTCF0:USTF0_20241009
["timestamp","ask_amount","ask_price","bid_price","bid_amount"]
[1728485961331,0.080835,61903.0,61902.0,0.080831]
[1728485961515,0.080835,61903.0,61896.0,0.0038]
[1728485961516,0.080836,61900.0,61896.0,0.0038]
[1728485961722,0.080836,61900.0,61891.0,0.20376573]
[1728485961723,0.19,61897.0,61891.0,0.01756573]
[1728485961920,0.270846,61892.0,61891.0,0.01376573]
[1728485962323,0.080846,61892.0,61891.0,0.01376573]
[1728485962933,0.080846,61892.0,61891.0,0.01476573]
[1728485965026,0.142046,61892.0,61891.0,0.01376573]
[1728485965929,0.142046,61892.0,61891.0,0.09461273]
[1728485966633,0.111846,61892.0,61891.0,0.09461273]
[1728485966836,0.092133,61903.0,61891.0,0.20376573]
[1728485966837,0.080843,61894.0,61891.0,0.20376573]
[1728485967025,0.190843,61894.0,61893.0,0.080845]
[1728485968028,0.11,61894.0,61893.0,0.080845]
[1728485968229,0.190843,61894.0,61893.0,0.080845]
[1728485969132,0.0302,61899.0,61897.0,0.080838]
[1728485969436,0.080841,61898.0,61897.0,0.080838]
[1728485969626,0.12,61898.0,61897.0,0.080838]
[1728485969929,0.09040789,61901.0,61900.0,0.080836]
[1728485970132,0.180835,61901.0,61900.0,0.080836]
[1728485971130,0.080835,61901.0,61900.0,0.441636]
[1728485971629,0.00384,61906.0,61900.0,0.441636]
[1728485971835,0.190871,61906.0,61905.0,0.284599]
[1728485972627,0.190871,61906.0,61905.0,0.094599]
[1728485973129,0.190871,61906.0,61905.0,0.095599]
[1728485973333,0.080871,61906.0,61905.0,0.285599]
[1728485974230,0.080871,61906.0,61905.0,0.286599]
[1728485974628,0.270871,61906.0,61905.0,0.01577]
[1728485974825,0.380871,61906.0,61905.0,0.01577]
[1728485975329,0.190871,61906.0,61905.0,0.096599]
[1728485975531,0.190871,61906.0,61905.0,0.01577]
[1728485978737,0.380871,61906.0,61905.0,0.01577]
[1728485979333,0.41209954,61906.0,61905.0,0.01577]
[1728485982040,0.380871,61906.0,61905.0,0.01577]
[1728485984250,0.411271,61906.0,61905.0,0.01577]
[1728485987352,0.44250126,61906.0,61905.0,0.01577]
[1728485988445,0.3739,61924.0,61905.0,0.37657]
[1728485988644,0.19,61908.0,61905.0,0.37657]
[1728485988846,0.080831,61906.0,61905.0,0.37657]
[1728485989155,0.190831,61906.0,61905.0,0.37657]
[1728485989455,0.190831,61906.0,61905.0,0.457399]
[1728485989646,0.190831,61906.0,61905.0,0.456399]
[1728485989852,0.190831,61906.0,61905.0,0.457399]
[1728485990048,0.23042204,61906.0,61905.0,0.456399]
[1728485990351,0.23042204,61906.0,61905.0,0.457399]
[1728485990551,0.23042171,61906.0,61905.0,0.457399]
[1728485990955,0.11,61906.0,61905.0,0.818199]
[1728485991348,0.190828,61906.0,61905.0,0.818199]
[1728485993958,0.092114,61919.0,61918.0,0.080812]
[1728485994254,0.23039778,61919.0,61918.0,0.441612]
[1728485994557,0.190814,61919.0,61918.0,0.441612]
[1728485995457,0.23039684,61919.0,61918.0,0.3618]
[1728485995754,0.23039684,61919.0,61918.0,0.3628]
[1728485996546,0.23039684,61919.0,61918.0,0.3618]
[1728485996747,0.23039684,61919.0,61918.0,0.3628]
[1728485997048,0.190814,61919.0,61918.0,0.3628]
[1728485998459,0.22203677,61919.0,61918.0,0.3628]
[1728486001470,0.00096001,61927.0,61926.0,0.080802]
[1728486001654,0.132179,61927.0,61926.0,0.631602]
[1728486001853,0.21201899,61927.0,61926.0,0.441602]
[1728486002566,0.1808,61927.0,61926.0,0.441602]
[1728486003061,0.1808,61927.0,61926.0,0.3608]
[1728486003256,0.1808,61927.0,61926.0,0.3618]
[1728486003765,0.1808,61927.0,61926.0,0.442602]
[1728486003966,0.1808,61927.0,61926.0,0.632602]
[1728486003967,0.1,61927.0,61926.0,0.632602]
[1728486004160,0.080796,61930.0,61929.0,0.080798]
[1728486004459,0.200756,61930.0,61929.0,0.080798]
[1728486004965,0.0808,61927.0,61926.0,0.3628]
[1728486005159,0.3908,61927.0,61926.0,0.3618]
[1728486005364,0.2008,61927.0,61926.0,0.441602]
[1728486005859,0.3908,61927.0,61926.0,0.3608]
[1728486006065,0.2008,61927.0,61926.0,0.442602]
[1728486006277,0.12,61927.0,61926.0,0.442602]
[1728486006456,0.12,61927.0,61926.0,0.443602]
[1728486007063,0.080798,61929.0,61928.0,0.080799]
[1728486007259,0.190798,61929.0,61928.0,0.080799]
[1728486007454,0.190798,61929.0,61926.0,0.3628]
[1728486007660,0.0808,61927.0,61926.0,0.3628]
[1728486008060,0.0808,61927.0,61926.0,0.3618]
[1728486008258,0.1108,61927.0,61926.0,0.3608]
[1728486008768,0.1108,61927.0,61926.0,0.442602]
[1728486008966,0.1108,61927.0,61926.0,0.3618]
[1728486009154,0.1108,61927.0,61926.0,0.3628]
[1728486010067,0.1108,61927.0,61926.0,0.443602]
[1728486010663,1.5,61933.0,61926.0,0.3628]
[1728486010859,1.700792,61933.0,61932.0,0.3608]
[1728486011163,1.73200914,61933.0,61932.0,0.3608]
[1728486011965,0.23200914,61933.0,61932.0,0.442594]
[1728486012173,0.27158331,61933.0,61932.0,0.443594]
[1728486012467,0.19079131,61933.0,61932.0,0.633594]
[1728486012675,0.19079086,61933.0,61932.0,0.633594]
[1728486013360,0.23200914,61933.0,61932.0,0.633594]
[1728486014270,0.03121714,61933.0,61932.0,0.633594]
[1728486014666,0.0113,61944.0,61939.0,0.080784]
[1728486014867,0.111677,61945.0,61941.0,0.3608]
[1728486014868,0.190821,61942.0,61941.0,0.3608]
[1728486015071,0.26160021,61942.0,61941.0,0.3608]
[1728486015674,0.26160021,61942.0,61941.0,0.631582]
[1728486015675,0.07081818,61942.0,61941.0,0.631582]
[1728486015874,0.03125137,61942.0,61941.0,0.631582]
[1728486016076,0.19334837,61954.0,61941.0,0.631582]
[1728486016376,0.19334837,61954.0,61951.0,0.270769]
[1728486016377,0.07076861,61952.0,61951.0,0.270769]
[1728486016565,0.14120731,61952.0,61951.0,0.631569]
[1728486016873,0.11197531,61952.0,61951.0,0.631569]
[1728486017273,0.080768,61952.0,61951.0,0.3608]
[1728486017981,0.080768,61952.0,61951.0,0.441569]
[1728486018876,0.113165,61954.0,61953.0,0.080766]
[1728486019068,0.1524,61954.0,61953.0,0.080766]
[1728486019269,0.12,61954.0,61953.0,0.080766]
[1728486019469,0.09065926,61957.0,61951.0,0.91524]
[1728486019670,0.0303,61961.0,61956.0,0.3608]
[1728486019877,0.080759,61960.0,61959.0,0.080758]
[1728486020077,0.180759,61960.0,61959.0,0.080758]
[1728486020572,0.180759,61960.0,61959.0,0.441558]
[1728486021169,0.180759,61960.0,61959.0,0.3608]
[1728486021374,0.370759,61960.0,61956.0,0.36232]
[1728486021679,0.370759,61960.0,61953.0,0.0048]
[1728486021680,0.080761,61957.0,61953.0,0.0048]
[1728486021892,0.270765,61954.0,61953.0,0.002]
[1728486022179,0.380765,61954.0,61953.0,0.002]
[1728486022478,0.080772,61949.0,61946.0,0.0038]
[1728486022684,0.380772,61949.0,61944.0,0.01377]
[1728486022980,0.080777,61945.0,61944.0,0.01377]
[1728486023182,0.190777,61945.0,61944.0,0.01377]
[1728486023678,0.380777,61945.0,61944.0,0.01377]
[1728486024087,0.190777,61945.0,61944.0,0.094548]
[1728486024381,0.080773,61948.0,61947.0,0.080774]
[1728486024582,0.190773,61948.0,61947.0,0.441574]
[1728486024772,1.5,61950.0,61947.0,0.441574]
[1728486024773,1.50084,61950.0,61947.0,0.3608]
[1728486024974,0.080769,61952.0,61951.0,0.080767]
[1728486025277,0.080769,61952.0,61951.0,0.080768]
[1728486025278,0.180769,61952.0,61951.0,0.080768]
[1728486025481,0.180769,61952.0,61949.0,0.3608]
[1728486025482,0.08077,61950.0,61949.0,0.3608]
[1728486025687,0.19077,61950.0,61949.0,0.3608]
[1728486026079,0.19177,61950.0,61949.0,0.441572]
[1728486026278,0.111,61950.0,61949.0,0.441572]
[1728486026781,0.08177,61950.0,61949.0,0.441572]
[1728486027174,0.20177,61950.0,61949.0,0.441572]
[1728486027372,0.20077,61950.0,61949.0,0.441572]
[1728486028083,0.12,61950.0,61949.0,0.441572]
[1728486028373,0.080765,61954.0,61953.0,0.080766]
[1728486028684,0.2219704,61954.0,61953.0,0.080766]
[1728486028880,0.1412054,61954.0,61953.0,0.080766]
[1728486029078,0.11,61954.0,61953.0,0.080766]
[1728486029279,0.190765,61954.0,61953.0,0.080766]
[1728486029475,0.11,61954.0,61953.0,0.080766]
[1728486030191,0.190765,61954.0,61953.0,0.080766]
[1728486032183,0.11,61954.0,61953.0,0.080766]
[1728486032388,0.11,61954.0,61950.0,0.19]
[1728486032389,0.080762,61957.0,61956.0,0.080761]
[1728486032691,0.22196669,61957.0,61956.0,0.3608]
[1728486033382,0.22196669,61957.0,61956.0,0.441562]
[1728486033581,0.22196669,61957.0,61956.0,0.3618]
[1728486034179,0.190762,61957.0,61956.0,0.3618]
[1728486034884,0.190762,61957.0,61956.0,0.3628]
[1728486035880,0.190762,61957.0,61956.0,0.443562]
[1728486038986,0.190762,61957.0,61956.0,0.3628]
[1728486039693,0.190762,61957.0,61956.0,0.443562]
[1728486041988,0.190762,61957.0,61956.0,0.3628]
[1728486042392,0.190762,61957.0,61956.0,0.443562]
[1728486042393,0.11,61957.0,61956.0,0.443562]
[1728486044001,0.190761,61957.0,61956.0,0.443562]
[1728486044192,0.11,61957.0,61956.0,0.443562]
[1728486044494,0.190761,61957.0,61956.0,0.443562]
[1728486044698,0.11,61957.0,61956.0,0.443562]
[1728486045391,0.190761,61957.0,61956.0,0.443562]
[1728486045593,0.11,61957.0,61956.0,0.443562]
[1728486046092,0.14120218,61957.0,61956.0,0.443562]
[1728486046294,0.11,61957.0,61956.0,0.443562]
[1728486046492,0.11,61957.0,61956.0,0.473962]
[1728486046493,0.1412009,61957.0,61956.0,0.473962]
[1728486046687,0.11,61957.0,61956.0,0.473962]
[1728486046995,0.14120082,61957.0,61956.0,0.473962]
[1728486047185,0.11,61957.0,61956.0,0.473962]
[1728486048299,0.2254,61967.0,61956.0,0.473962]
[1728486048300,0.0038,61967.0,61956.0,0.473962]
[1728486048595,0.0038,61967.0,61966.0,0.992349]
[1728486048596,0.200748,61967.0,61966.0,0.992349]
[1728486048803,0.200748,61967.0,61966.0,0.802349]
[1728486048995,0.23194633,61967.0,61966.0,0.802349]
[1728486049199,0.23194633,61967.0,61963.0,0.20377]
[1728486049200,1.284868,61967.0,61963.0,0.01377]
[1728486049391,1.284868,61967.0,61959.0,0.0038]
[1728486049392,0.270752,61964.0,61959.0,0.0038]
[1728486049590,0.270752,61964.0,61956.0,0.0058]
[1728486049591,0.080761,61957.0,61956.0,0.0058]
[1728486049893,1.8459002,61957.0,61956.0,0.3618]
[1728486050095,1.8459002,61957.0,61956.0,0.001]
[1728486050096,1.96623868,61957.0,61956.0,0.001]
[1728486050295,1.40529948,61957.0,61956.0,0.001]
[1728486050492,1.55044329,61957.0,61956.0,0.001]
[1728486050700,1.55044329,61957.0,61949.0,0.3646]
[1728486050701,2.90529948,61957.0,61949.0,0.3646]
[1728486050899,0.27077,61950.0,61949.0,0.3608]
[1728486051094,0.080773,61948.0,61947.0,0.37695]
[1728486051399,0.190773,61948.0,61947.0,0.37695]
[1728486051602,0.26153085,61948.0,61947.0,0.37695]
[1728486052493,0.27392669,61948.0,61947.0,0.37695]
[1728486053602,0.32351777,61948.0,61947.0,0.38095]
[1728486054595,0.32551777,61948.0,61947.0,0.37895]
[1728486054798,0.47066518,61948.0,61947.0,0.37895]
[1728486055305,0.32551777,61948.0,61947.0,0.37895]
[1728486055908,0.47066518,61948.0,61947.0,0.37695]
[1728486056508,0.46966518,61948.0,61947.0,0.37795]
[1728486056715,0.46966518,61948.0,61947.0,0.37895]
[1728486057111,0.080779,61943.0,61942.0,0.0038]
[1728486057313,0.080779,61943.0,61938.0,0.36702177]
[1728486057314,0.080785,61939.0,61938.0,0.36702177]
[1728486057618,0.080785,61939.0,61938.0,0.36322177]
[1728486057619,0.390785,61939.0,61938.0,0.36322177]
[1728486057808,0.42199784,61939.0,61938.0,0.36322177]
[1728486058715,0.390785,61939.0,61938.0,0.36322177]
[1728486059713,0.390785,61939.0,61938.0,0.36622177]
[1728486060515,0.40296098,61939.0,61938.0,0.36622177]
[1728486060819,0.40296098,61939.0,61938.0,0.36922177]
[1728486061212,0.35339004,61939.0,61937.0,0.01616]
[1728486061518,0.080799,61928.0,61927.0,0.3608]
[1728486061707,0.390799,61928.0,61927.0,0.3608]
[1728486063112,0.390799,61928.0,61927.0,0.3638]
[1728486063520,0.12,61928.0,61927.0,0.6346]
[1728486063716,0.00092,61932.0,61931.0,0.080795]
[1728486063914,0.1,61932.0,61931.0,0.080795]
[1728486064511,0.00242254,61941.0,61940.0,0.080783]
[1728486064713,0.12242254,61941.0,61940.0,0.441583]
[1728486066812,0.12742254,61941.0,61940.0,0.441583]
[1728486067225,0.20820454,61941.0,61940.0,0.441583]
[1728486067727,0.12742254,61941.0,61940.0,0.441583]
[1728486069119,0.20820454,61941.0,61940.0,0.441583]
[1728486070117,0.20820454,61941.0,61940.0,0.3608]
[1728486070518,0.20820454,61941.0,61940.0,0.441583]
[1728486071914,0.20820454,61941.0,61940.0,0.3608]
[1728486072319,0.12742254,61941.0,61940.0,0.441583]
[1728486075227,0.20820454,61941.0,61940.0,0.441583]
[1728486079323,0.15863313,61941.0,61940.0,0.441583]
[1728486080025,0.15863313,61941.0,61940.0,0.473683]
[1728486081530,0.03863313,61941.0,61940.0,0.834483]
[1728486081840,0.00742254,61941.0,61940.0,0.834483]
[1728486082036,0.00742254,61941.0,61940.0,1.918803]
[1728486083635,0.092069,61952.0,61951.0,0.080769]
[1728486083933,0.22197447,61952.0,61951.0,0.3608]
[1728486084241,0.26153497,61952.0,61951.0,0.3608]
[1728486084631,0.26153497,61952.0,61951.0,0.441569]
[1728486084831,0.45153497,61952.0,61951.0,0.3608]
[1728486085434,0.45153497,61952.0,61951.0,0.441569]
[1728486086129,0.45553497,61952.0,61951.0,0.443569]
[1728486087238,0.18476597,61952.0,61951.0,0.443569]
[1728486087437,0.14520547,61952.0,61951.0,0.443569]
[1728486087938,0.114,61952.0,61951.0,0.443569]
[1728486088435,0.194768,61952.0,61951.0,0.443569]
[1728486090141,0.114,61952.0,61951.0,0.443569]
[1728486091634,0.194768,61952.0,61951.0,0.443569]
[1728486093040,0.114,61952.0,61951.0,0.443569]
[1728486094037,0.194768,61952.0,61951.0,0.443569]
[1728486097040,0.22597273,61952.0,61951.0,0.3628]
[1728486099749,0.22597467,61952.0,61951.0,0.3628]
[1728486101447,0.90021467,61952.0,61951.0,0.3628]
[1728486101650,0.90021467,61952.0,61946.0,0.01616]
[1728486101651,0.080774,61947.0,61946.0,0.01616]
[1728486101956,0.41198067,61947.0,61946.0,0.01616]
[1728486102448,0.45154714,61947.0,61946.0,0.01616]
[1728486102942,0.45554714,61947.0,61946.0,0.01716]
[1728486103337,0.45754714,61947.0,61946.0,0.01816]
[1728486103849,0.45754714,61947.0,61946.0,0.098936]
[1728486104042,0.26754714,61947.0,61946.0,0.098936]
[1728486104547,0.26754776,61947.0,61946.0,0.098936]
[1728486109360,0.50713995,61947.0,61946.0,0.01816]
[1728486109648,0.080782,61941.0,61940.0,0.3608]
[1728486109853,0.40199097,61941.0,61940.0,0.3608]
[1728486110446,0.1,61941.0,61940.0,0.441583]
[1728486110848,0.21599247,61941.0,61940.0,0.441583]
[1728486112356,0.104,61941.0,61940.0,0.441583]
[1728486112546,0.21599268,61941.0,61940.0,0.441583]
[1728486114960,0.21599268,61941.0,61940.0,0.3608]
[1728486115255,0.080786,61938.0,61937.0,0.3608]
[1728486115557,0.180786,61938.0,61937.0,0.441587]
[1728486115954,0.180786,61938.0,61937.0,0.3608]
[1728486116554,0.180786,61938.0,61937.0,0.442587]
[1728486116751,0.180786,61938.0,61937.0,0.3618]
[1728486117454,0.21699822,61938.0,61937.0,0.442587]
[1728486117653,0.21999822,61938.0,61937.0,0.443587]
[1728486118863,0.21999849,61938.0,61937.0,0.443587]
[1728486119054,0.21999849,61938.0,61937.0,0.442587]
[1728486119457,0.21999849,61938.0,61937.0,0.3618]
[1728486119765,0.25456903,61938.0,61937.0,0.3618]
[1728486119957,0.35426903,61938.0,61937.0,0.3608]
[1728486120760,0.35726903,61938.0,61937.0,0.3618]
[1728486121262,0.35726903,61938.0,61937.0,0.3608]
[1728486121263,0.35727206,61938.0,61937.0,0.3608]
[1728486121455,0.35727206,61938.0,61937.0,0.3618]
[1728486122762,0.35227206,61938.0,61937.0,0.3618]
[1728486122961,0.25957206,61938.0,61937.0,0.443587]
[1728486123853,0.21999956,61938.0,61937.0,0.442587]
[1728486124659,0.108,61938.0,61937.0,0.442587]
[1728486126453,0.103,61938.0,61937.0,0.443587]
[1728486126656,0.1,61938.0,61937.0,0.442587]
[1728486127062,0.1,61938.0,61937.0,0.474187]
[1728486127971,0.1,61938.0,61937.0,0.48611459]
[1728486129062,0.1,61938.0,61937.0,0.474187]
[1728486132870,0.1,61938.0,61937.0,0.3618]
[1728486133067,0.21199726,61938.0,61937.0,0.3618]
[1728486133276,0.21199726,61938.0,61937.0,0.442587]
[1728486133461,0.21199726,61938.0,61937.0,0.3618]
[1728486134163,0.21199726,61938.0,61937.0,0.3608]
[1728486134367,0.21299726,61938.0,61937.0,0.3608]
[1728486135171,0.22495545,61938.0,61937.0,0.441587]
[1728486135965,0.22795545,61938.0,61937.0,0.441587]
[1728486136168,0.22695545,61938.0,61937.0,0.441587]
[1728486136367,0.22695545,61938.0,61937.0,0.3608]
[1728486136368,0.22995545,61938.0,61937.0,0.3608]
[1728486136876,0.22895545,61938.0,61937.0,0.3608]
[1728486137369,0.22695545,61938.0,61937.0,0.3608]
[1728486137569,0.22895545,61938.0,61937.0,0.3608]
[1728486139178,0.19574419,61938.0,61937.0,0.3608]
[1728486139477,0.19974419,61938.0,61937.0,0.3608]
[1728486139675,0.32012814,61938.0,61937.0,0.3608]
[1728486139870,0.31812814,61938.0,61937.0,0.3608]
[1728486140073,0.32112814,61938.0,61937.0,0.3618]
[1728486140272,0.35632814,61938.0,61937.0,0.3618]
[1728486140475,0.35332814,61938.0,61937.0,0.3618]
[1728486140684,0.35532814,61938.0,61937.0,0.3618]
[1728486141179,0.35632814,61938.0,61937.0,0.002]
[1728486145074,0.50129106,61938.0,61937.0,0.002]
[1728486145275,0.080789,61936.0,61935.0,0.01616]
[1728486145476,0.45157347,61936.0,61935.0,0.01616]
[1728486146370,0.45657347,61936.0,61935.0,0.01616]
[1728486147181,0.46057347,61936.0,61935.0,0.01616]
[1728486147375,0.94493347,61936.0,61935.0,0.01616]
[1728486147882,0.94493347,61936.0,61930.0,0.0038]
[1728486147883,0.080795,61931.0,61930.0,0.0038]
[1728486148183,0.080795,61931.0,61928.0,0.3608]
[1728486148184,0.080798,61929.0,61928.0,0.3608]
[1728486148376,0.080804,61924.0,61923.0,0.3646]
[1728486148575,0.200804,61924.0,61923.0,0.3608]
[1728486148877,0.71650513,61924.0,61923.0,0.3608]
[1728486149278,0.71650513,61924.0,61919.0,0.01616]
[1728486149279,0.080808,61921.0,61919.0,0.01616]
[1728486149484,0.080809,61920.0,61919.0,0.01616]
[1728486149784,0.23203013,61920.0,61919.0,0.01616]
[1728486150582,0.15122113,61920.0,61919.0,0.096971]
[1728486150875,0.12,61920.0,61919.0,0.658771]
[1728486151085,0.12,61920.0,61919.0,0.468771]
[1728486151878,0.121,61920.0,61919.0,0.479771]
[1728486152381,0.121,61920.0,61919.0,0.669771]
[1728486152592,0.121,61920.0,61919.0,0.479771]
[1728486152780,0.001,61920.0,61919.0,0.479771]
[1728486152980,0.001,61920.0,61919.0,0.49175649]
[1728486155691,0.121,61920.0,61919.0,0.49175649]
[1728486156986,0.201809,61920.0,61919.0,0.39896]
[1728486157989,0.201809,61920.0,61919.0,0.479771]
[1728486159789,0.48452,61919.0,61900.0,0.00242283]
[1728486159998,0.270834,61901.0,61900.0,0.00242283]
[1728486160291,0.3,61901.0,61897.0,0.080839]
[1728486160487,0.080838,61898.0,61897.0,0.080839]
[1728486160693,0.190838,61898.0,61897.0,0.080839]
[1728486161189,0.080841,61896.0,61895.0,0.441641]
[1728486161395,0.270841,61896.0,61895.0,0.441641]
[1728486161593,0.270841,61896.0,61892.0,0.080846]
[1728486161789,0.270841,61896.0,61890.0,0.07]
[1728486161790,0.254677,61891.0,61890.0,0.07]
[1728486161982,0.17383,61891.0,61890.0,0.150849]
[1728486162286,0.270845,61894.0,61893.0,0.080845]
[1728486162490,0.380845,61894.0,61893.0,0.080845]
[1728486164092,0.384845,61894.0,61893.0,0.080845]
[1728486164587,0.384845,61894.0,61893.0,0.083845]
[1728486165790,0.384845,61894.0,61893.0,0.003]
[1728486166192,0.383845,61894.0,61893.0,0.083845]
[1728486166584,0.383845,61894.0,61893.0,0.080845]
[1728486166794,0.383845,61894.0,61893.0,0.081845]
[1728486167195,0.383845,61894.0,61893.0,0.080845]
[1728486167396,0.388845,61894.0,61893.0,0.080845]
[1728486167797,0.383845,61894.0,61893.0,0.080845]
[1728486168000,0.386845,61894.0,61893.0,0.080845]
[1728486168494,0.383845,61894.0,61893.0,0.080845]
[1728486168794,0.383845,61894.0,61891.0,0.01617]
[1728486168795,0.080846,61892.0,61891.0,0.097016]
[1728486168997,0.180846,61892.0,61891.0,0.097016]
[1728486170296,0.180846,61892.0,61891.0,0.099016]
[1728486171394,0.180846,61892.0,61891.0,0.100016]
[1728486171997,0.1,61892.0,61891.0,0.099016]
[1728486172300,0.1,61892.0,61891.0,0.583736]
[1728486172598,0.08084,61897.0,61896.0,0.080841]
[1728486172804,0.19084,61897.0,61896.0,0.080841]
[1728486173598,0.38084,61897.0,61896.0,0.080841]
[1728486174287,0.3,61897.0,61896.0,0.080841]
[1728486174799,0.3,61897.0,61896.0,0.084841]
[1728486175599,0.380839,61897.0,61896.0,0.084841]
[1728486176495,0.3,61897.0,61896.0,0.084841]
[1728486177292,0.3,61897.0,61896.0,0.080841]
[1728486177492,0.3,61897.0,61896.0,0.081841]
[1728486178093,0.3,61897.0,61896.0,0.085841]
[1728486178503,0.3,61897.0,61896.0,0.088841]
[1728486180805,0.00242376,61907.0,61896.0,1.09268]
[1728486180991,0.12242376,61907.0,61906.0,0.080828]
[1728486181704,0.200826,61907.0,61906.0,0.080828]
[1728486182409,0.204826,61907.0,61906.0,0.080828]
[1728486183808,0.211826,61907.0,61906.0,0.081828]
[1728486184003,0.131,61907.0,61906.0,0.081828]
[1728486184308,0.004,61907.0,61906.0,0.082828]
[1728486184710,0.004,61907.0,61906.0,0.567428]
[1728486184907,0.001,61907.0,61906.0,0.565428]
[1728486185113,0.003,61907.0,61906.0,0.565428]
[1728486185503,0.003,61907.0,61906.0,0.58385857]
[1728486186209,0.001,61907.0,61906.0,0.58385857]
[1728486186406,0.002,61907.0,61906.0,0.10625857]
[1728486186801,0.202826,61907.0,61906.0,0.093828]
[1728486187306,0.201826,61907.0,61906.0,0.087828]
[1728486187606,0.202826,61907.0,61906.0,0.095828]
[1728486188003,0.202826,61907.0,61906.0,0.087828]
[1728486188203,0.201826,61907.0,61906.0,0.094828]
[1728486188408,0.202826,61907.0,61906.0,0.094828]
[1728486188914,0.204826,61907.0,61906.0,0.088828]
[1728486189112,0.206826,61907.0,61906.0,0.080828]
[1728486190410,0.203826,61907.0,61906.0,0.080828]
[1728486190610,0.206826,61907.0,61906.0,0.080828]
[1728486191203,0.203826,61907.0,61904.0,0.01617]
[1728486191407,0.270829,61905.0,61904.0,0.01617]
[1728486191610,0.380829,61905.0,61904.0,0.097]
[1728486192613,0.380829,61905.0,61904.0,0.099]
[1728486193315,0.3,61905.0,61904.0,0.099]
[1728486194002,0.11,61905.0,61904.0,0.099]
[1728486194303,0.11,61905.0,61904.0,0.101]
[1728486194611,0.5639973,61913.0,61912.0,0.08082]
[1728486194612,0.270819,61913.0,61912.0,0.08082]
[1728486194912,0.390819,61913.0,61912.0,0.08082]
[1728486196113,0.4220448,61913.0,61912.0,0.08082]
[1728486196302,0.31,61913.0,61912.0,0.08082]
[1728486197515,0.390819,61913.0,61912.0,0.08082]
[1728486197701,0.390819,61913.0,61912.0,0.08182]
[1728486198015,0.42204369,61913.0,61912.0,0.08182]
[1728486198411,0.42204369,61913.0,61912.0,0.08282]
[1728486198917,0.42304369,61913.0,61912.0,0.08182]
[1728486199305,0.34222469,61913.0,61912.0,0.08182]
[1728486199910,0.311,61913.0,61912.0,0.08182]
[1728486200817,0.001,61913.0,61912.0,0.08182]
[1728486201012,0.0038,61920.0,61919.0,0.080811]
[1728486201223,0.31,61920.0,61919.0,0.080811]
[1728486202108,0.390809,61920.0,61919.0,0.080811]
[1728486202614,0.390809,61920.0,61919.0,0.083811]
[1728486202819,0.31,61920.0,61919.0,0.083811]
[1728486203008,0.390809,61920.0,61919.0,0.083811]
[1728486203512,0.390809,61920.0,61919.0,0.004]
[1728486203910,0.390809,61920.0,61919.0,0.002]
[1728486204114,0.080815,61916.0,61912.0,0.0038]
[1728486204417,0.080815,61916.0,61906.0,0.00242277]
[1728486204418,0.080821,61911.0,61910.0,0.080822]
[1728486204620,0.200821,61911.0,61910.0,0.080822]
[1728486205315,0.12,61911.0,61910.0,0.080822]
[1728486206113,0.121,61911.0,61910.0,0.080822]
[1728486207315,0.123,61911.0,61910.0,0.080822]
[1728486207512,0.313,61911.0,61910.0,0.080822]
[1728486208307,0.311,61911.0,61910.0,0.083822]
[1728486208711,0.31,61911.0,61910.0,0.083822]
[1728486209712,0.31,61911.0,61910.0,0.087822]
[1728486210514,0.3608,61914.0,61910.0,0.087822]
[1728486210515,0.3608,61914.0,61910.0,0.09992241]
[1728486210717,0.4008,61914.0,61913.0,0.080819]
[1728486211715,0.481617,61914.0,61913.0,0.080819]
[1728486211916,0.4008,61914.0,61913.0,0.080819]
[1728486212412,0.481617,61914.0,61913.0,0.080819]
[1728486212617,0.4008,61914.0,61913.0,0.080819]
[1728486212814,0.4008,61914.0,61913.0,0.081819]
[1728486213515,0.481617,61914.0,61913.0,0.081819]
[1728486214119,0.481617,61914.0,61913.0,0.001]
[1728486214318,0.080828,61907.0,61906.0,0.080825]
[1728486214517,0.41205233,61907.0,61906.0,0.080825]
[1728486214906,0.380828,61907.0,61906.0,0.080825]
[1728486216108,0.380828,61907.0,61906.0,0.081825]
[1728486216719,0.386828,61907.0,61906.0,0.085825]
[1728486217110,0.306,61907.0,61906.0,0.085825]
[1728486217320,0.307,61907.0,61906.0,0.081825]
[1728486218415,0.302,61907.0,61906.0,0.080825]
[1728486220522,0.382826,61907.0,61906.0,0.080825]
[1728486221013,0.080829,61905.0,61904.0,0.01617]
[1728486221220,0.200829,61905.0,61904.0,0.01617]
[1728486221419,0.200829,61905.0,61904.0,0.097]
[1728486222824,0.23205765,61905.0,61904.0,0.01817]
[1728486223322,0.23205765,61905.0,61904.0,0.01917]
[1728486224326,0.19,61899.0,61896.0,0.08084]
[1728486224528,0.441639,61897.0,61896.0,0.08084]
[1728486224827,0.561639,61897.0,61896.0,0.08084]
[1728486225033,0.59287222,61897.0,61896.0,0.08084]
[1728486226628,0.561639,61897.0,61896.0,0.08384]
[1728486227327,0.4808,61897.0,61896.0,0.08684]
[1728486228023,0.561638,61897.0,61896.0,0.086833]
[1728486228328,0.561638,61897.0,61896.0,0.006]
[1728486228718,0.561638,61897.0,61896.0,0.086833]
[1728486229223,0.561638,61897.0,61896.0,0.006]
[1728486229831,0.3721,61910.0,61897.0,0.01617]
[1728486230024,0.0362,61912.0,61905.0,0.080821]
[1728486230025,0.4708,61906.0,61905.0,0.080821]
[1728486230219,0.11,61906.0,61905.0,0.080821]
[1728486231226,0.11,61906.0,61905.0,0.081821]
[1728486231227,0.116,61906.0,61905.0,0.081821]
[1728486231427,0.122,61906.0,61905.0,0.081821]
[1728486232337,0.116,61906.0,61905.0,0.085821]